{"text_format":"3","workbook":"xlsx","n_sheets":2,"sheets":["岗位一览表","岗位分配表"],"not_rendered":{"defined_names":2},"read":"whole","date_system":"1900"}

{"sheet":"岗位一览表","index":0,"n_rows":8,"n_cols":13,"rows_kept":8,"merged":[[0,0,0,2],[1,0,1,12],[2,0,3,0],[2,1,3,1],[2,2,3,2],[2,3,2,4],[2,5,3,5],[2,6,3,6],[2,7,2,11],[2,12,3,12]]}
["附件1"]
["美姑县2024年上半年面向社会公开考核招聘中小学教师岗位和条件要求一览表"]
["序号","主管部门名称","单位名称","招聘岗位",null,"招聘                          人数","招聘对象范围","其他条件要求",{"$nulls":4},"备注"]
[{"$nulls":3},"岗位       名称","岗位     类别",null,null,"年龄","学习形式","学历（学位）","专业条件\n要求","其他"]
[1,"美姑县教育体育和科学技术局","美姑县中学","高中美术","专业技术",2,"面向全国、非在编在职人员","本科35周岁及以下；硕士研究生40周岁及以下","本科为普通高等教育全日制；研究生为普通高等教育","本科（学士）及以上","本科：美术学、绘画、雕塑、 摄影、美术教育、漫画；                      研究生：美术学 、美术                       \n","具有高级中学美术教师资格证"]
[2,"美姑县教育体育和科学技术局","美姑县小学","小学美术","专业技术",6,"面向全国、非在编在职人员","本科35周岁及以下；硕士研究生40周岁及以下","本科为普通高等教育全日制；研究生为普通高等教育","本科（学士）及以上","本科：美术学、绘画、雕塑、 摄影、美术教育、漫画；                     研究生：美术学、美术                    \n","具有小学及以上教师资格证"]
[3,"美姑县教育体育和科学技术局","美姑县小学","小学音乐","专业技术",8,"面向全国、非在编在职人员","本科35周岁及以下；硕士研究生40周岁及以下","本科为普通高等教育全日制；研究生为普通高等教育","本科（学士）及以上","本科：音乐学、音乐表演、音乐科技与艺术、音乐教育、音乐治疗、流行音乐；       研究生：音乐与舞蹈学、音乐学、音乐\n","具有小学及以上教师资格证"]
["合计",{"$nulls":4},16]

{"sheet":"岗位分配表","index":1,"n_rows":17,"n_cols":10,"rows_kept":17,"merged":[[0,0,0,9],[1,0,2,0],[1,1,2,1],[1,2,2,2],[1,3,1,9]]}
["美姑县2023年下半年考核招聘初高中教师岗位分配表"]
["序号","学校","招考方式"]
[{"$nulls":3},"生物","政治","地理","历史","信息技术","美术","合计"]
[1,"美姑县中学（高中）","考核招聘",{"$nulls":3},1,null,null,{"$f":"SUM(D4:I4)","v":1}]
[2,"美姑县中学（初中）","考核招聘",2,null,1,{"$nulls":3},{"$f":"SUM(D5:I5)","v":3}]
[3,"美姑县民族初级中学","考核招聘",1,1,2,2,1,null,7]
[4,"美姑县巴普镇级中学","考核招聘",2,1,null,null,2,null,5]
[5,"美姑县洪溪初级中学","考核招聘",2,2,2,2,1,null,9]
[6,"美姑县大桥初级中学","考核招聘",2,2,2,2,1,null,9]
[7,"美姑县牛牛坝初级中学","考核招聘",null,2,1,2,2,null,7]
[8,"美姑县城关小学","考核招聘",{"$nulls":5},1,1]
[9,"美姑县牛牛坝镇小学校","考核招聘",{"$nulls":5},1,1]
[10,"美姑县牛牛坝镇兴荣小学校","考核招聘",{"$nulls":5},1,1]
[11,"美姑县候古莫镇小学校","考核招聘",{"$nulls":4},1,null,1]
[12,"美姑县瓦候乡小学校","考核招聘",{"$nulls":4},1,null,1]
[13,"美姑县龙门乡小学校","考核招聘",{"$nulls":5},1,1]
[null,"合计",null,{"$f":"SUM(D4:D16)","v":9},8,8,9,9,4,47]